[Event "Early-Titled-Tuesday-Blitz-February-13-2024"]
[Site "Chess.com"]
[Date "2024.02.13"]
[Round "7"]
[White "MikeSailer"]
[Black "Kotofeyca"]
[Result "1-0"]
[WhiteElo "2196"]
[BlackElo "2402"]
[TimeControl "180+1"]
[EndTime "9:20:16 PST"]
[Termination "MikeSailer won on time"]

1. d4 {[%clk 0:02:59.6]} 1... d5 {[%clk 0:02:59.7]} 2. Nf3 {[%clk 0:02:59.5]}
2... c6 {[%clk 0:03:00.6]} 3. Bf4 {[%clk 0:02:59.6]} 3... Bg4 {[%clk 0:02:59.8]}
4. e3 {[%clk 0:02:59.8]} 4... Nd7 {[%clk 0:02:59.8]} 5. Be2 {[%clk 0:02:59.2]}
5... e6 {[%clk 0:03:00.2]} 6. h3 {[%clk 0:02:58.3]} 6... Bh5 {[%clk 0:03:00]} 7.
c4 {[%clk 0:02:57.6]} 7... Ngf6 {[%clk 0:03:00]} 8. Nc3 {[%clk 0:02:57.6]} 8...
Be7 {[%clk 0:02:59.8]} 9. Qb3 {[%clk 0:02:57.6]} 9... b6 {[%clk 0:02:55.8]} 10.
O-O {[%clk 0:02:52.3]} 10... O-O {[%clk 0:02:55.7]} 11. a4 {[%clk 0:02:49.5]}
11... Ne4 {[%clk 0:02:48.3]} 12. Rfd1 {[%clk 0:02:30]} 12... Ndf6 {[%clk
0:02:37.8]} 13. Qc2 {[%clk 0:01:56.2]} 13... a5 {[%clk 0:02:21.1]} 14. Nxe4
{[%clk 0:01:55.1]} 14... Nxe4 {[%clk 0:02:18.9]} 15. Ne5 {[%clk 0:01:52.3]}
15... Bxe2 {[%clk 0:02:18.3]} 16. Qxe2 {[%clk 0:01:51.2]} 16... Rc8 {[%clk
0:02:12.1]} 17. Rac1 {[%clk 0:01:48.7]} 17... Bd6 {[%clk 0:02:02.2]} 18. f3
{[%clk 0:01:43.5]} 18... Bxe5 {[%clk 0:01:51.8]} 19. Bxe5 {[%clk 0:01:42.2]}
19... Nd6 {[%clk 0:01:45.2]} 20. b3 {[%clk 0:01:36]} 20... Nf5 {[%clk
0:01:32.2]} 21. Rc2 {[%clk 0:01:29.5]} 21... Qg5 {[%clk 0:01:28.1]} 22. Bf4
{[%clk 0:01:23.1]} 22... Qg6 {[%clk 0:01:22.4]} 23. Rdc1 {[%clk 0:01:19.2]}
23... c5 {[%clk 0:00:19.5]} 24. cxd5 {[%clk 0:01:17.5]} 24... exd5 {[%clk
0:00:19.1]} 25. dxc5 {[%clk 0:01:17.8]} 25... bxc5 {[%clk 0:00:19.9]} 26. Rxc5
{[%clk 0:01:14.6]} 26... Rcd8 {[%clk 0:00:19.2]} 27. Rxa5 {[%clk 0:01:05.2]}
27... d4 {[%clk 0:00:18]} 28. e4 {[%clk 0:01:05.1]} 28... Nh4 {[%clk 0:00:17.8]}
29. Rg5 {[%clk 0:00:56.5]} 29... Qb6 {[%clk 0:00:15.4]} 30. Qd3 {[%clk
0:00:47.6]} 30... Ng6 {[%clk 0:00:09.7]} 31. Bc7 {[%clk 0:00:46.3]} 31... Qf6
{[%clk 0:00:05.2]} 32. Bxd8 {[%clk 0:00:44.8]} 32... Rxd8 {[%clk 0:00:06.1]} 33.
Rf5 {[%clk 0:00:40.7]} 33... Qd6 {[%clk 0:00:01.9]} 34. Rd5 {[%clk 0:00:39]} 1-0

[Event "Early-Titled-Tuesday-Blitz-February-13-2024"]
[Site "Chess.com"]
[Date "2024.02.13"]
[Round "7"]
[White "jaskol95"]
[Black "Matibar"]
[Result "0-1"]
[WhiteElo "2578"]
[BlackElo "2763"]
[TimeControl "180+1"]
[EndTime "9:20:21 PST"]
[Termination "Matibar won by resignation"]

1. e4 {[%clk 0:03:00.9]} 1... e6 {[%clk 0:02:56.3]} 2. Nf3 {[%clk 0:02:58.2]}
2... d5 {[%clk 0:02:55.8]} 3. e5 {[%clk 0:02:58.9]} 3... c5 {[%clk 0:02:53.1]}
4. b4 {[%clk 0:02:59]} 4... cxb4 {[%clk 0:02:51.7]} 5. a3 {[%clk 0:02:59.6]}
5... Nc6 {[%clk 0:02:43.3]} 6. axb4 {[%clk 0:02:59.6]} 6... Bxb4 {[%clk
0:02:42.5]} 7. c3 {[%clk 0:03:00.1]} 7... Be7 {[%clk 0:02:41]} 8. d4 {[%clk
0:03:00.8]} 8... f6 {[%clk 0:02:39.9]} 9. exf6 {[%clk 0:02:39.8]} 9... Nxf6
{[%clk 0:02:37.2]} 10. Bd3 {[%clk 0:02:40.4]} 10... O-O {[%clk 0:02:37]} 11. O-O
{[%clk 0:02:39.6]} 11... Bd6 {[%clk 0:02:26.2]} 12. Ba3 {[%clk 0:02:37.7]} 12...
a6 {[%clk 0:02:22.5]} 13. Re1 {[%clk 0:02:33.7]} 13... Bxa3 {[%clk 0:02:07.8]}
14. Nxa3 {[%clk 0:02:33.4]} 14... Bd7 {[%clk 0:02:07]} 15. Qb1 {[%clk
0:02:04.6]} 15... Qc7 {[%clk 0:01:48.6]} 16. Ng5 {[%clk 0:02:01.3]} 16... h6
{[%clk 0:01:46.8]} 17. Nxe6 {[%clk 0:01:51.7]} 17... Bxe6 {[%clk 0:01:46.8]} 18.
Rxe6 {[%clk 0:01:52.6]} 18... Ng4 {[%clk 0:01:44.2]} 19. g3 {[%clk 0:01:35.7]}
19... Qf7 {[%clk 0:01:27.1]} 20. Re2 {[%clk 0:01:24.7]} 20... Nxf2 {[%clk
0:01:25.5]} 21. Bh7+ {[%clk 0:01:13.9]} 21... Kh8 {[%clk 0:01:25.1]} 22. Qf1
{[%clk 0:01:11.3]} 22... Nh3+ {[%clk 0:00:59.6]} 23. Qxh3 {[%clk 0:01:11.1]}
23... Kxh7 {[%clk 0:01:00.5]} 24. Rae1 {[%clk 0:00:57.3]} 24... Qf3 {[%clk
0:00:43.8]} 25. Nb1 {[%clk 0:00:44.7]} 25... Rf6 {[%clk 0:00:42]} 26. Nd2 {[%clk
0:00:41.4]} 26... Qd3 {[%clk 0:00:40]} 27. Qh5 {[%clk 0:00:38]} 27... Rf5 {[%clk
0:00:32]} 28. Qh3 {[%clk 0:00:35.6]} 28... Raf8 {[%clk 0:00:31.4]} 29. Nf1
{[%clk 0:00:17.3]} 29... Qxc3 {[%clk 0:00:29.9]} 30. Ne3 {[%clk 0:00:16.2]}
30... Qxd4 {[%clk 0:00:28.7]} 31. Qg2 {[%clk 0:00:10]} 31... Re5 {[%clk
0:00:27.2]} 32. Kh1 {[%clk 0:00:08.8]} 32... Rfe8 {[%clk 0:00:25.7]} 33. Qf3
{[%clk 0:00:06.6]} 33... Qe4 {[%clk 0:00:24.7]} 34. Kg2 {[%clk 0:00:06.5]} 34...
Qxf3+ {[%clk 0:00:24.4]} 35. Kxf3 {[%clk 0:00:07.4]} 35... Nd4+ {[%clk
0:00:24.9]} 36. Kf4 {[%clk 0:00:07.4]} 36... Nxe2+ {[%clk 0:00:25.8]} 37. Rxe2
{[%clk 0:00:07]} 37... Re4+ {[%clk 0:00:25.9]} 38. Kf5 {[%clk 0:00:07.1]} 38...
Rxe3 {[%clk 0:00:26]} 0-1

[Event "Early-Titled-Tuesday-Blitz-February-13-2024"]
[Site "Chess.com"]
[Date "2024.02.13"]
[Round "7"]
[White "RandomNoob04"]
[Black "davigator"]
[Result "1-0"]
[WhiteElo "2595"]
[BlackElo "2313"]
[TimeControl "180+1"]
[EndTime "9:20:21 PST"]
[Termination "RandomNoob04 won by checkmate"]

1. e4 {[%clk 0:03:00.9]} 1... c5 {[%clk 0:02:54.3]} 2. d4 {[%clk 0:03:00.9]}
2... cxd4 {[%clk 0:02:53.8]} 3. c3 {[%clk 0:03:01.5]} 3... dxc3 {[%clk 0:02:54]}
4. Nxc3 {[%clk 0:03:02.4]} 4... e6 {[%clk 0:02:50]} 5. Nf3 {[%clk 0:03:01.9]}
5... Nc6 {[%clk 0:02:49.7]} 6. Bc4 {[%clk 0:03:02.4]} 6... Nf6 {[%clk 0:02:49]}
7. O-O {[%clk 0:02:59.4]} 7... a6 {[%clk 0:02:49.2]} 8. e5 {[%clk 0:02:57]} 8...
Ng8 {[%clk 0:02:48.1]} 9. Ne4 {[%clk 0:02:51.5]} 9... Qc7 {[%clk 0:02:46.3]} 10.
Nd6+ {[%clk 0:02:34.4]} 10... Bxd6 {[%clk 0:02:46.3]} 11. exd6 {[%clk
0:02:35.3]} 11... Qb6 {[%clk 0:02:44.3]} 12. Be3 {[%clk 0:02:31.5]} 12... Qxb2
{[%clk 0:02:41.8]} 13. Rb1 {[%clk 0:02:17.9]} 13... Qf6 {[%clk 0:02:40.9]} 14.
Bg5 {[%clk 0:02:06.1]} 14... Qg6 {[%clk 0:02:40.4]} 15. h4 {[%clk 0:01:53.2]}
15... f6 {[%clk 0:02:38.9]} 16. Be3 {[%clk 0:01:39.9]} 16... Nh6 {[%clk
0:02:38.7]} 17. Bxe6 {[%clk 0:01:22.4]} 17... dxe6 {[%clk 0:02:35.4]} 18. d7+
{[%clk 0:01:23.3]} 18... Bxd7 {[%clk 0:02:35.4]} 19. Rxb7 {[%clk 0:01:23.9]}
19... Qf7 {[%clk 0:02:12.9]} 20. Bc5 {[%clk 0:00:58.9]} 20... e5 {[%clk
0:02:02.3]} 21. Qd2 {[%clk 0:00:46.9]} 21... Rb8 {[%clk 0:01:57.2]} 22. Rc7
{[%clk 0:00:46.6]} 22... Rc8 {[%clk 0:01:55.6]} 23. Rb7 {[%clk 0:00:46.9]} 23...
Nd8 {[%clk 0:01:51.7]} 24. Ra7 {[%clk 0:00:31.1]} 24... Rxc5 {[%clk 0:01:49.8]}
25. Rd1 {[%clk 0:00:31.7]} 25... O-O {[%clk 0:01:47]} 26. Rxd7 {[%clk
0:00:30.6]} 26... Qe6 {[%clk 0:01:37.1]} 27. Rxd8 {[%clk 0:00:29.6]} 27... Rc8
{[%clk 0:01:35.1]} 28. Rd7 {[%clk 0:00:27.7]} 28... Nf7 {[%clk 0:01:31.9]} 29.
Qa5 {[%clk 0:00:22.1]} 29... Rc2 {[%clk 0:01:27.1]} 30. Qb4 {[%clk 0:00:15.1]}
30... h5 {[%clk 0:01:16.2]} 31. Qe4 {[%clk 0:00:13]} 31... Rxa2 {[%clk
0:01:13.9]} 32. Qg6 {[%clk 0:00:12.1]} 32... Qg4 {[%clk 0:01:12.8]} 33. Qb1
{[%clk 0:00:06.7]} 33... Ra4 {[%clk 0:01:11.4]} 34. Qb3 {[%clk 0:00:06.6]} 34...
Qc4 {[%clk 0:01:08.1]} 35. Qb7 {[%clk 0:00:04.4]} 35... Rb4 {[%clk 0:01:06.8]}
36. Qa7 {[%clk 0:00:04.9]} 36... a5 {[%clk 0:01:06.7]} 37. Re7 {[%clk 0:00:04]}
37... a4 {[%clk 0:01:06]} 38. Rc7 {[%clk 0:00:03.6]} 38... Qb5 {[%clk
0:01:03.1]} 39. Rdd7 {[%clk 0:00:03.6]} 39... Rb1+ {[%clk 0:01:00.4]} 40. Kh2
{[%clk 0:00:03.4]} 40... Qb7 {[%clk 0:00:59.2]} 41. Rxb7 {[%clk 0:00:03.6]}
41... Rxb7 {[%clk 0:00:57.8]} 42. Rxb7 {[%clk 0:00:04.5]} 42... a3 {[%clk
0:00:56.9]} 43. Qxa3 {[%clk 0:00:04.6]} 43... Nh6 {[%clk 0:00:56.1]} 44. Qb3+
{[%clk 0:00:05.5]} 44... Kh8 {[%clk 0:00:55.4]} 45. Rc7 {[%clk 0:00:05.5]} 45...
Nf5 {[%clk 0:00:53.2]} 46. Qd3 {[%clk 0:00:04.9]} 46... g6 {[%clk 0:00:51.9]}
47. Qd7 {[%clk 0:00:04.3]} 47... Rg8 {[%clk 0:00:49.3]} 48. Qh7# {[%clk
0:00:04.4]} 1-0

[Event "Early-Titled-Tuesday-Blitz-February-13-2024"]
[Site "Chess.com"]
[Date "2024.02.13"]
[Round "7"]
[White "ploxoi"]
[Black "IMRosen"]
[Result "0-1"]
[WhiteElo "2440"]
[BlackElo "2665"]
[TimeControl "180+1"]
[EndTime "9:20:22 PST"]
[Termination "IMRosen won by resignation"]

1. d4 {[%clk 0:03:00.9]} 1... d5 {[%clk 0:02:59.5]} 2. c4 {[%clk 0:03:01.4]}
2... e6 {[%clk 0:02:57.9]} 3. Nf3 {[%clk 0:03:01.7]} 3... Nf6 {[%clk 0:02:57.7]}
4. g3 {[%clk 0:03:01.7]} 4... dxc4 {[%clk 0:02:57.9]} 5. Bg2 {[%clk 0:03:01.8]}
5... Bb4+ {[%clk 0:02:58.5]} 6. Bd2 {[%clk 0:03:01.7]} 6... c5 {[%clk 0:02:59]}
7. Bxb4 {[%clk 0:02:36.9]} 7... cxb4 {[%clk 0:02:59.2]} 8. O-O {[%clk
0:02:35.9]} 8... O-O {[%clk 0:02:59.2]} 9. Nbd2 {[%clk 0:02:04]} 9... b5 {[%clk
0:02:54.2]} 10. Ne5 {[%clk 0:01:47]} 10... Nd5 {[%clk 0:02:52.4]} 11. a4 {[%clk
0:01:43.4]} 11... bxa3 {[%clk 0:02:47.1]} 12. Rxa3 {[%clk 0:01:43.5]} 12... Bb7
{[%clk 0:02:42.3]} 13. e4 {[%clk 0:01:24.3]} 13... Nb4 {[%clk 0:02:35.1]} 14. h4
{[%clk 0:01:18.8]} 14... Qxd4 {[%clk 0:02:10.2]} 15. Nef3 {[%clk 0:00:57.7]}
15... Qxb2 {[%clk 0:02:10]} 16. Ra5 {[%clk 0:00:56.5]} 16... a6 {[%clk
0:02:03.4]} 17. Ng5 {[%clk 0:00:47.1]} 17... h6 {[%clk 0:01:52.9]} 18. Nh3
{[%clk 0:00:30]} 18... Rd8 {[%clk 0:01:49.3]} 19. Nxc4 {[%clk 0:00:30.3]} 19...
Rxd1 {[%clk 0:01:39.2]} 20. Nxb2 {[%clk 0:00:30.4]} 20... Rxf1+ {[%clk
0:01:38.4]} 21. Kxf1 {[%clk 0:00:30.5]} 21... N8c6 {[%clk 0:01:31.4]} 22. Ra1
{[%clk 0:00:30.2]} 22... Rd8 {[%clk 0:01:30.7]} 23. e5 {[%clk 0:00:27]} 23...
Rd2 {[%clk 0:01:24.6]} 24. Nd1 {[%clk 0:00:26.8]} 24... Nc2 {[%clk 0:01:10]} 25.
Rc1 {[%clk 0:00:22.7]} 25... b4 {[%clk 0:01:10.1]} 26. Nf4 {[%clk 0:00:20.5]}
26... b3 {[%clk 0:01:06.6]} 27. Nb2 {[%clk 0:00:20.5]} 27... a5 {[%clk
0:00:54.8]} 28. Nfd3 {[%clk 0:00:17.3]} 28... a4 {[%clk 0:00:48.6]} 29. Nc5
{[%clk 0:00:17.5]} 29... a3 {[%clk 0:00:48.4]} 30. Nxb7 {[%clk 0:00:16.2]} 30...
axb2 {[%clk 0:00:48]} 31. Rb1 {[%clk 0:00:17.1]} 31... Nxe5 {[%clk 0:00:46.4]}
32. Rxb2 {[%clk 0:00:16.8]} 32... Ne3+ {[%clk 0:00:20.7]} 33. fxe3 {[%clk
0:00:17]} 33... Rxb2 {[%clk 0:00:21.3]} 34. Nc5 {[%clk 0:00:17.5]} 34... Rxg2
{[%clk 0:00:19.7]} 35. Nxb3 {[%clk 0:00:16.3]} 35... Rxg3 {[%clk 0:00:19.4]} 36.
Kf2 {[%clk 0:00:17.2]} 36... Rh3 {[%clk 0:00:18.8]} 37. Ke2 {[%clk 0:00:18.1]}
37... Rxh4 {[%clk 0:00:19]} 38. Nd4 {[%clk 0:00:18.6]} 38... Rxd4 {[%clk
0:00:18.7]} 39. exd4 {[%clk 0:00:19.5]} 0-1

[Event "Early-Titled-Tuesday-Blitz-February-13-2024"]
[Site "Chess.com"]
[Date "2024.02.13"]
[Round "7"]
[White "Conejoviejo67"]
[Black "FMCarmona"]
[Result "0-1"]
[WhiteElo "2446"]
[BlackElo "2264"]
[TimeControl "180+1"]
[EndTime "9:20:22 PST"]
[Termination "FMCarmona won by resignation"]

1. e4 {[%clk 0:03:00.9]} 1... e5 {[%clk 0:03:00.2]} 2. Nc3 {[%clk 0:03:00.2]}
2... Nc6 {[%clk 0:03:00.5]} 3. g3 {[%clk 0:03:00.3]} 3... Nf6 {[%clk 0:03:00.6]}
4. Bg2 {[%clk 0:03:00.5]} 4... Bc5 {[%clk 0:03:01.4]} 5. h3 {[%clk 0:03:00.3]}
5... a6 {[%clk 0:03:00.9]} 6. a4 {[%clk 0:02:59.7]} 6... d6 {[%clk 0:03:01.3]}
7. Nge2 {[%clk 0:03:00.1]} 7... h6 {[%clk 0:02:58.7]} 8. d3 {[%clk 0:03:00.4]}
8... g5 {[%clk 0:02:52.1]} 9. Be3 {[%clk 0:02:59.1]} 9... Be6 {[%clk 0:02:38.1]}
10. d4 {[%clk 0:02:51.3]} 10... exd4 {[%clk 0:02:36.3]} 11. Nxd4 {[%clk
0:02:52.2]} 11... Nxd4 {[%clk 0:01:52.5]} 12. Bxd4 {[%clk 0:02:53.1]} 12... Bxd4
{[%clk 0:01:43.2]} 13. Qxd4 {[%clk 0:02:54]} 13... O-O {[%clk 0:01:43.4]} 14.
O-O {[%clk 0:02:51.9]} 14... Nh5 {[%clk 0:01:40.9]} 15. Rad1 {[%clk 0:02:46.8]}
15... Qf6 {[%clk 0:01:40.3]} 16. Qe3 {[%clk 0:02:41.8]} 16... Rfe8 {[%clk
0:01:35.2]} 17. f4 {[%clk 0:02:40.4]} 17... Bc4 {[%clk 0:01:31.3]} 18. Rf2
{[%clk 0:02:38.4]} 18... gxf4 {[%clk 0:01:29.5]} 19. gxf4 {[%clk 0:02:37.7]}
19... Kh7 {[%clk 0:00:59.7]} 20. b3 {[%clk 0:02:35.8]} 20... Be6 {[%clk
0:00:53.2]} 21. Rdf1 {[%clk 0:02:26.7]} 21... Rg8 {[%clk 0:00:52.3]} 22. f5
{[%clk 0:02:25.9]} 22... Bd7 {[%clk 0:00:46.6]} 23. Nd5 {[%clk 0:02:24.3]} 23...
Qe5 {[%clk 0:00:46.9]} 24. Nf4 {[%clk 0:02:14.7]} 24... Rg3 {[%clk 0:00:37.7]}
25. Rf3 {[%clk 0:02:11.5]} 25... Rxf3 {[%clk 0:00:29.5]} 26. Rxf3 {[%clk
0:02:10.9]} 26... Nxf4 {[%clk 0:00:27.9]} 27. Rxf4 {[%clk 0:02:09.9]} 27... Rg8
{[%clk 0:00:24.3]} 28. Rh4 {[%clk 0:02:06.2]} 28... Qf6 {[%clk 0:00:18.9]} 29.
Qf4 {[%clk 0:02:03.4]} 29... Rg5 {[%clk 0:00:17.8]} 30. Rg4 {[%clk 0:01:58]}
30... Bc6 {[%clk 0:00:15.1]} 31. Rxg5 {[%clk 0:01:53.7]} 31... Qxg5 {[%clk
0:00:15]} 32. Qxg5 {[%clk 0:01:53.6]} 32... hxg5 {[%clk 0:00:15.4]} 33. Kf2
{[%clk 0:01:54.2]} 33... Kg7 {[%clk 0:00:15]} 34. Ke3 {[%clk 0:01:53.2]} 34...
Kf6 {[%clk 0:00:15.2]} 35. Kd4 {[%clk 0:01:52.6]} 35... b6 {[%clk 0:00:11.5]}
36. Bf1 {[%clk 0:01:51.6]} 36... a5 {[%clk 0:00:10.3]} 37. Be2 {[%clk
0:01:51.6]} 37... Bb7 {[%clk 0:00:09.9]} 38. Bf3 {[%clk 0:01:51.1]} 38... c5+
{[%clk 0:00:09.2]} 39. Ke3 {[%clk 0:01:50.1]} 39... Ke5 {[%clk 0:00:08.7]} 40.
Bg2 {[%clk 0:01:49.4]} 40... f6 {[%clk 0:00:07.5]} 41. c4 {[%clk 0:01:45.8]}
41... Bc6 {[%clk 0:00:06.8]} 42. Bf3 {[%clk 0:01:45.8]} 42... Be8 {[%clk
0:00:06.1]} 43. Bd1 {[%clk 0:01:44.3]} 43... Bf7 {[%clk 0:00:06.2]} 44. Bc2
{[%clk 0:01:44.4]} 44... Bh5 {[%clk 0:00:06]} 45. Bd3 {[%clk 0:01:39.1]} 45...
Bd1 {[%clk 0:00:06]} 46. Kd2 {[%clk 0:01:39.1]} 46... Bxb3 {[%clk 0:00:05.8]}
47. Kc3 {[%clk 0:01:39.6]} 47... Bxa4 {[%clk 0:00:06]} 48. Be2 {[%clk 0:01:39]}
48... Bc6 {[%clk 0:00:06.1]} 49. Bd3 {[%clk 0:01:39.3]} 49... Bxe4 {[%clk
0:00:06.2]} 50. Be2 {[%clk 0:01:38.2]} 50... Bxf5 {[%clk 0:00:06.2]} 51. Bf1
{[%clk 0:01:38.9]} 51... Be6 {[%clk 0:00:06.4]} 52. Bg2 {[%clk 0:01:38.7]} 52...
f5 {[%clk 0:00:06.5]} 53. Bf3 {[%clk 0:01:38.8]} 53... g4 {[%clk 0:00:05.4]} 54.
hxg4 {[%clk 0:01:38.6]} 54... fxg4 {[%clk 0:00:05.9]} 55. Bg2 {[%clk 0:01:39.5]}
55... Kf4 {[%clk 0:00:06]} 56. Kd3 {[%clk 0:01:38.4]} 56... Bf5+ {[%clk
0:00:06]} 57. Kc3 {[%clk 0:01:38.4]} 57... Ke3 {[%clk 0:00:06.2]} 58. Bc6 {[%clk
0:01:38.9]} 58... g3 {[%clk 0:00:05.6]} 59. Kb3 {[%clk 0:01:38.5]} 59... Be4
{[%clk 0:00:06.1]} 60. Bxe4 {[%clk 0:01:37.1]} 60... Kxe4 {[%clk 0:00:06.5]} 61.
Kc3 {[%clk 0:01:38]} 61... g2 {[%clk 0:00:06.7]} 62. Kd2 {[%clk 0:01:38.9]}
62... g1=Q {[%clk 0:00:06.8]} 63. Ke2 {[%clk 0:01:39.8]} 63... Qc1 {[%clk
0:00:06.7]} 64. Kf2 {[%clk 0:01:39.9]} 64... Qc3 {[%clk 0:00:06.8]} 65. Ke2
{[%clk 0:01:40.8]} 65... a4 {[%clk 0:00:07.2]} 66. Kf2 {[%clk 0:01:41.7]} 66...
a3 {[%clk 0:00:07.7]} 0-1

[Event "Early-Titled-Tuesday-Blitz-February-13-2024"]
[Site "Chess.com"]
[Date "2024.02.13"]
[Round "7"]
[White "NewYearGirl"]
[Black "Alenzer"]
[Result "1-0"]
[WhiteElo "2405"]
[BlackElo "2136"]
[TimeControl "180+1"]
[EndTime "9:20:25 PST"]
[Termination "NewYearGirl won by resignation"]

1. e4 {[%clk 0:02:58.3]} 1... c5 {[%clk 0:02:58.1]} 2. Nf3 {[%clk 0:02:58.4]}
2... e6 {[%clk 0:02:54.9]} 3. d4 {[%clk 0:02:58.5]} 3... cxd4 {[%clk 0:02:54.8]}
4. Nxd4 {[%clk 0:02:59.4]} 4... Nf6 {[%clk 0:02:53]} 5. Nc3 {[%clk 0:02:59.5]}
5... Nc6 {[%clk 0:02:53.5]} 6. Ndb5 {[%clk 0:02:58.4]} 6... Bb4 {[%clk
0:02:52.3]} 7. a3 {[%clk 0:02:56.5]} 7... Bxc3+ {[%clk 0:02:45]} 8. Nxc3 {[%clk
0:02:57.4]} 8... d5 {[%clk 0:02:45.3]} 9. exd5 {[%clk 0:02:55.7]} 9... exd5
{[%clk 0:02:44.7]} 10. Bd3 {[%clk 0:02:55.9]} 10... d4 {[%clk 0:02:43]} 11. Ne2
{[%clk 0:02:55]} 11... O-O {[%clk 0:02:42.6]} 12. O-O {[%clk 0:02:54.9]} 12...
Bg4 {[%clk 0:02:41.8]} 13. f3 {[%clk 0:02:55]} 13... Bh5 {[%clk 0:02:41.6]} 14.
Bg5 {[%clk 0:02:55]} 14... h6 {[%clk 0:02:19.6]} 15. Bh4 {[%clk 0:02:52.4]}
15... g5 {[%clk 0:02:15.4]} 16. Bf2 {[%clk 0:02:50.5]} 16... Qb6 {[%clk
0:02:04.6]} 17. Kh1 {[%clk 0:02:39.8]} 17... Rad8 {[%clk 0:02:04]} 18. c3 {[%clk
0:02:36.7]} 18... Qxb2 {[%clk 0:02:01.1]} 19. Nxd4 {[%clk 0:02:27.6]} 19... Qxc3
{[%clk 0:01:49.3]} 20. Rc1 {[%clk 0:02:25.8]} 20... Qxa3 {[%clk 0:01:45.9]} 21.
Ra1 {[%clk 0:02:08.7]} 21... Qd6 {[%clk 0:01:16.4]} 22. Nxc6 {[%clk 0:02:04.7]}
22... Qxc6 {[%clk 0:01:02.1]} 23. Qb1 {[%clk 0:02:01.8]} 23... a6 {[%clk
0:00:58.9]} 24. Kg1 {[%clk 0:01:57.8]} 24... Kg7 {[%clk 0:00:56.7]} 25. Rc1
{[%clk 0:01:52.4]} 25... Qd5 {[%clk 0:00:52]} 26. Bc2 {[%clk 0:01:40.7]} 26...
Bg6 {[%clk 0:00:42.5]} 27. Bxg6 {[%clk 0:01:39.8]} 27... fxg6 {[%clk 0:00:43]}
28. Be1 {[%clk 0:01:32.7]} 28... Rf7 {[%clk 0:00:37.1]} 29. Bc3 {[%clk
0:01:31.8]} 29... Qc5+ {[%clk 0:00:32.6]} 30. Kh1 {[%clk 0:01:31.4]} 30... Qd6
{[%clk 0:00:31.1]} 31. Qb2 {[%clk 0:01:31.3]} 31... b5 {[%clk 0:00:29.4]} 32. h3
{[%clk 0:01:30.6]} 32... h5 {[%clk 0:00:28.7]} 33. Be5 {[%clk 0:01:30.7]} 33...
Qe6 {[%clk 0:00:20.5]} 34. Re1 {[%clk 0:01:30.7]} 34... Qc6 {[%clk 0:00:17.2]}
35. Rac1 {[%clk 0:01:29.2]} 35... Qb6 {[%clk 0:00:15.7]} 36. Qc3 {[%clk
0:01:11]} 36... Kh6 {[%clk 0:00:15.4]} 37. Bc7 {[%clk 0:01:09.9]} 37... Qd4
{[%clk 0:00:12.4]} 38. Bxd8 {[%clk 0:01:08.1]} 38... Qxd8 {[%clk 0:00:12.2]} 39.
Re6 {[%clk 0:01:07.8]} 39... Nd5 {[%clk 0:00:11.8]} 40. Qd4 {[%clk 0:01:07.8]}
40... a5 {[%clk 0:00:10.7]} 41. Rd1 {[%clk 0:01:07.7]} 41... Rd7 {[%clk
0:00:10.3]} 42. Qf2 {[%clk 0:01:04.6]} 42... b4 {[%clk 0:00:10.2]} 43. Re5
{[%clk 0:01:03]} 43... a4 {[%clk 0:00:10.1]} 44. Qd2 {[%clk 0:01:01.5]} 44...
Nf6 {[%clk 0:00:09.6]} 45. Qxg5+ {[%clk 0:01:01.7]} 45... Kh7 {[%clk 0:00:08.9]}
46. Rxd7+ {[%clk 0:01:01.2]} 46... Qxd7 {[%clk 0:00:08.9]} 47. Qxf6 {[%clk
0:01:01.8]} 47... Qd1+ {[%clk 0:00:09]} 48. Kh2 {[%clk 0:01:02.4]} 48... Qd8
{[%clk 0:00:07.2]} 49. Qxd8 {[%clk 0:01:01.8]} 1-0

[Event "Early-Titled-Tuesday-Blitz-February-13-2024"]
[Site "Chess.com"]
[Date "2024.02.13"]
[Round "7"]
[White "stratacticos"]
[Black "martinmena"]
[Result "0-1"]
[WhiteElo "1955"]
[BlackElo "2114"]
[TimeControl "180+1"]
[EndTime "9:20:26 PST"]
[Termination "martinmena won on time"]

1. e4 {[%clk 0:03:00.9]} 1... c6 {[%clk 0:02:59]} 2. d4 {[%clk 0:02:59.8]} 2...
d5 {[%clk 0:02:59.6]} 3. e5 {[%clk 0:02:59.4]} 3... Bf5 {[%clk 0:02:58.4]} 4. h4
{[%clk 0:02:53.4]} 4... h5 {[%clk 0:02:57.2]} 5. Bd3 {[%clk 0:02:51.5]} 5...
Bxd3 {[%clk 0:02:57.5]} 6. Qxd3 {[%clk 0:02:51.5]} 6... Qa5+ {[%clk 0:02:57.7]}
7. Bd2 {[%clk 0:02:49.5]} 7... Qa6 {[%clk 0:02:57.2]} 8. e6 {[%clk 0:02:42.1]}
8... Qxd3 {[%clk 0:02:55.9]} 9. exf7+ {[%clk 0:02:41.4]} 9... Kxf7 {[%clk
0:02:56.8]} 10. cxd3 {[%clk 0:02:40.9]} 10... g6 {[%clk 0:02:38.3]} 11. Nf3
{[%clk 0:02:38.5]} 11... Bh6 {[%clk 0:02:37.6]} 12. Ng5+ {[%clk 0:02:29.4]}
12... Bxg5 {[%clk 0:02:34.5]} 13. hxg5 {[%clk 0:02:28.3]} 13... e6 {[%clk
0:02:26.2]} 14. Nc3 {[%clk 0:02:21.6]} 14... Ne7 {[%clk 0:02:22.4]} 15. O-O-O
{[%clk 0:02:20.8]} 15... Nf5 {[%clk 0:02:19.1]} 16. Ne2 {[%clk 0:02:18.2]} 16...
Nd7 {[%clk 0:02:17.4]} 17. Rh3 {[%clk 0:02:08.6]} 17... e5 {[%clk 0:01:25.9]}
18. dxe5 {[%clk 0:02:04.7]} 18... Nxe5 {[%clk 0:01:24.3]} 19. Bc3 {[%clk
0:02:02.5]} 19... Rhe8 {[%clk 0:01:18.4]} 20. Bxe5 {[%clk 0:01:38]} 20... Rxe5
{[%clk 0:01:17.5]} 21. Nf4 {[%clk 0:01:36.9]} 21... Rae8 {[%clk 0:01:12]} 22. g4
{[%clk 0:01:24.5]} 22... hxg4 {[%clk 0:00:56.5]} 23. Rh7+ {[%clk 0:01:23.5]}
23... Ng7 {[%clk 0:00:55.5]} 24. Kd2 {[%clk 0:01:17.4]} 24... Rxg5 {[%clk
0:00:49.8]} 25. Rdh1 {[%clk 0:01:07.9]} 25... Rf5 {[%clk 0:00:45]} 26. Nxg6
{[%clk 0:00:25.7]} 26... Rxf2+ {[%clk 0:00:41.2]} 27. Kc3 {[%clk 0:00:24.9]}
27... Kxg6 {[%clk 0:00:40.5]} 28. R1h6+ {[%clk 0:00:24.2]} 28... Kf7 {[%clk
0:00:40.5]} 29. Rd6 {[%clk 0:00:25.1]} 29... Re7 {[%clk 0:00:33.1]} 30. Rh8
{[%clk 0:00:19.8]} 30... g3 {[%clk 0:00:31.3]} 31. Rdd8 {[%clk 0:00:18.7]} 31...
g2 {[%clk 0:00:29.3]} 32. Rhf8+ {[%clk 0:00:08.3]} 32... Kg6 {[%clk 0:00:24.1]}
33. Rxf2 {[%clk 0:00:09.2]} 33... g1=Q {[%clk 0:00:23.6]} 34. Rd6+ {[%clk
0:00:05.6]} 34... Re6 {[%clk 0:00:22]} 0-1